bitfinex/quotes_ETHUSD_20241119
["timestamp","ask_amount","ask_price","bid_price","bid_amount"]
[1732033912150,3.21099,3114.3,3114.2,0.35631079]
[1732033912464,3.21099,3114.3,3113.9,0.83]
[1732033912465,3.21109,3114.2,3114.1,0.98708697]
[1732033912825,3.21109,3114.2,3114.1,0.63096765]
[1732033913023,3.21109,3114.2,3114.1,0.98708697]
[1732033913242,3.21109,3114.2,3114.1,0.63096765]
[1732033913449,3.21109,3114.2,3114.1,0.98708697]
[1732033913662,3.21109,3114.2,3114.1,0.63096765]
[1732033915133,6.42189,3114.4,3114.1,0.63096765]
[1732033915334,3.21069,3114.6,3114.2,0.8241]
[1732033915632,3.21069,3114.6,3114.3,0.46661677]
[1732033915829,3.21069,3114.6,3114.2,1.17990823]
[1732033916261,3.21079,3114.5,3114.2,0.8241]
[1732033916963,3.21043,3114.9,3114.2,1.17990823]
[1732033917277,3.21038,3114.9,3114.5,0.7882]
[1732033917431,3.21038,3114.9,3114.5,1.14400823]
[1732033917631,3.21038,3114.9,3114.6,0.82860519]
[1732033917858,6.42083,3114.9,3114.6,0.82860519]
[1732033918066,3.21038,3114.9,3114.6,0.82860519]
[1732033918234,3.21053,3114.8,3114.6,0.47279696]
[1732033918432,3.21053,3114.8,3114.6,0.35580823]
[1732033918728,0.7959,3116.1,3115.3,0.7882]
[1732033918956,4.00506,3116.1,3115.3,0.7882]
[1732033919140,3.20973,3115.6,3115.3,0.7882]
[1732033919375,3.20978,3115.5,3115.3,0.7882]
[1732033919988,3.20986,3115.4,3115.0,1.51699116]
[1732033920143,3.21013,3115.2,3115.0,1.16118293]
[1732033920346,3.21013,3115.2,3114.9,0.72849116]
[1732033920347,3.21016,3115.1,3114.9,0.72849116]
[1732033920655,3.21016,3115.1,3115.0,0.35580823]
[1732033920857,3.21033,3115.0,3114.9,0.35547035]
[1732033921153,0.642049,3115.0,3114.7,0.72822813]
[1732033921371,3.21058,3114.7,3114.6,0.37275778]
[1732033921576,3.21058,3114.7,3114.6,0.3556437]
[1732033922382,3.21047,3114.8,3114.5,0.3556437]
[1732033922566,3.21047,3114.8,3114.4,0.65548633]
[1732033922897,3.21047,3114.8,3114.5,0.3556437]
[1732033923186,3.21047,3114.8,3114.4,1.19244444]
[1732033923539,3.21073,3114.6,3114.4,1.19244444]
[1732033923845,3.21073,3114.6,3114.4,1.19268744]
[1732033924388,3.21073,3114.6,3114.5,0.3558867]
[1732033924892,3.21073,3114.6,3114.4,1.01137303]
[1732033925394,3.21073,3114.6,3114.5,0.3558867]
[1732033926046,0.7801,3115.2,3114.5,0.3558867]
[1732033926047,3.21057,3114.8,3114.5,0.3558867]
[1732033926247,3.21067,3114.7,3114.5,0.3558867]
[1732033926495,3.21067,3114.7,3114.6,0.3558867]
[1732033926793,3.21046,3114.9,3114.5,0.3558867]
[1732033927024,3.21054,3114.8,3114.6,0.3558867]
[1732033927314,3.21054,3114.8,3114.7,0.3558867]
[1732033927512,3.2104,3114.9,3114.5,0.3558867]
[1732033927668,3.99022,3115.2,3114.6,0.3558867]
[1732033927669,3.21028,3115.0,3114.6,0.3558867]
[1732033927874,3.21028,3115.0,3114.7,0.3558867]
[1732033928070,3.21028,3115.0,3114.8,0.3558867]
[1732033928277,3.21028,3115.0,3114.6,0.83225886]
[1732033928278,3.21028,3115.0,3114.9,0.3558867]
[1732033928589,3.21047,3114.8,3114.7,0.3558867]
[1732033929473,3.21058,3114.7,3114.6,0.3558867]
[1732033929814,3.21078,3114.5,3114.4,0.65548633]
[1732033930174,3.21078,3114.5,3114.4,1.01160153]
[1732033930675,3.21068,3114.6,3114.4,0.65548633]
[1732033931001,3.21052,3114.8,3114.5,0.35615735]
[1732033931173,3.21022,3115.1,3114.6,0.35615735]
[1732033931373,3.21022,3115.1,3114.8,0.7748]
[1732033931574,3.21027,3115.0,3114.9,0.35615735]
[1732033931815,3.21022,3115.1,3114.9,0.35615735]
[1732033931816,0.7659,3115.6,3114.9,0.35598285]
[1732033932018,3.20988,3115.4,3114.9,0.35598285]
[1732033932187,3.20981,3115.5,3115.0,0.35598285]
[1732033932387,3.20981,3115.5,3115.1,0.35598285]
[1732033932577,3.20986,3115.4,3115.2,0.35598285]
[1732033932913,3.20969,3115.6,3115.1,0.39396267]
[1732033932914,3.21006,3115.2,3115.1,0.35598285]
[1732033933140,3.20993,3115.4,3115.0,0.35598285]
[1732033933275,3.21015,3115.2,3115.1,0.35598285]
[1732033933479,3.21016,3115.1,3115.0,0.35598285]
[1732033934400,3.21016,3115.1,3114.9,0.65761565]
[1732033934401,3.21027,3115.0,3114.9,1.0135985]
[1732033934721,3.21027,3115.0,3114.9,0.65761565]
[1732033937726,3.21047,3114.8,3114.7,0.35598285]
[1732033937926,3.21047,3114.8,3114.5,0.35598285]
[1732033938132,3.21047,3114.8,3114.6,0.35598285]
[1732033938341,3.21027,3115.0,3114.7,0.9833933]
[1732033938549,3.21027,3115.0,3114.8,0.35598285]
[1732033938695,3.21027,3115.0,3114.9,0.35598285]
[1732033939812,3.59769824,3115.0,3114.9,0.35598285]
[1732033940147,0.38742824,3115.0,3114.4,0.35598285]
[1732033940344,3.21078,3114.5,3114.3,1.17534382]
[1732033940641,6.42166,3114.5,3114.4,0.99491595]
[1732033940843,3.21078,3114.5,3114.4,0.99491595]
[1732033941523,3.21078,3114.5,3114.4,0.63844805]
[1732033944355,3.21109,3114.2,3114.1,0.35665935]
[1732033944657,3.2112,3114.1,3114.0,0.35665935]
[1732033944946,3.2114,3113.9,3113.8,0.35665935]
[1732033945546,3.2114,3113.9,3113.7,0.35665935]
[1732033945807,3.21161,3113.7,3113.5,0.37403326]
[1732033945953,3.21171,3113.6,3113.5,0.37403326]
[1732033946160,3.21171,3113.6,3113.5,1.38194795]
[1732033947427,3.21151,3113.8,3113.5,1.38194795]
[1732033947627,3.21162,3113.7,3113.6,0.35673401]
[1732033948333,3.21171,3113.6,3113.5,0.65118068]
[1732033948538,3.21171,3113.6,3113.2,0.37403326]
[1732033948539,3.21171,3113.6,3113.2,0.35673401]
[1732033948727,3.21212,3113.2,3113.1,0.35673401]
[1732033949044,3.21223,3113.1,3113.0,0.35673401]
[1732033949224,3.21223,3113.1,3112.8,0.35673401]
[1732033949424,3.21243,3112.9,3112.7,1.15943326]
[1732033949635,3.21243,3112.9,3112.8,0.37403326]
[1732033949837,0.8208,3113.7,3112.8,0.98953952]
[1732033950069,3.21224,3113.1,3112.9,0.73067358]
[1732033950271,3.21224,3113.1,3112.9,0.35664032]
[1732033951178,3.21233,3113.0,3112.9,0.35664032]
[1732033951364,3.21243,3112.9,3112.8,0.98953952]
[1732033951672,0.8208,3113.7,3112.8,1.2044368]
[1732033951673,3.21225,3113.1,3112.8,1.2044368]
[1732033951831,3.21225,3113.1,3112.9,0.35664032]
[1732033952034,3.21225,3113.1,3112.9,0.59302733]
[1732033952229,3.21225,3113.1,3112.9,0.23638701]
[1732033952661,3.21243,3112.9,3112.8,0.6328992]
[1732033953167,3.21214,3113.2,3112.8,0.6328992]
[1732033953377,3.21204,3113.3,3112.8,1.16906448]
[1732033953665,3.21214,3113.2,3112.8,1.16906448]
[1732033954131,3.21204,3113.3,3112.8,1.16906448]
[1732033954331,3.21186,3113.5,3112.9,3.21236]
[1732033954565,3.21186,3113.5,3113.0,0.762]
[1732033954830,3.21167,3113.7,3113.1,0.55]
[1732033955037,3.21143,3113.9,3113.4,3.2119]
[1732033955232,3.21125,3114.1,3113.3,4.33060032]
[1732033955472,0.8195,3114.2,3113.4,0.79950533]
[1732033955473,3.21151,3113.8,3113.4,0.79950533]
[1732033955636,0.8195,3114.2,3113.4,1.15614565]
[1732033955835,3.21162,3113.7,3113.3,1.11864032]
[1732033956027,3.21162,3113.7,3113.6,0.65686915]
[1732033956679,6.42297,3113.9,3113.6,0.65686915]
[1732033956975,3.21154,3113.8,3113.6,0.65686915]
[1732033957186,3.21161,3113.7,3113.6,0.65686915]
[1732033957384,6.42297,3113.9,3113.6,0.65686915]
[1732033958176,3.21161,3113.7,3113.6,0.65686915]
[1732033958375,3.21151,3113.8,3113.2,0.35664032]
[1732033958575,3.21192,3113.4,3113.0,1.48947358]
[1732033958778,3.21192,3113.4,3113.0,0.7588]
[1732033958983,3.2118,3113.6,3113.0,1.22899536]
[1732033959294,0.833,3113.7,3113.0,1.22899536]
[1732033959295,3.21151,3113.8,3113.3,0.63869948]
[1732033959443,3.21167,3113.7,3113.3,0.63869948]
[1732033959648,3.2114,3114.0,3113.4,0.7588]
[1732033959975,3.21156,3113.8,3113.4,0.7588]
[1732033960183,3.21163,3113.7,3113.4,0.7588]
[1732033960685,3.21175,3113.6,3113.4,0.7588]
[1732033961245,3.21175,3113.6,3113.3,0.63869948]
[1732033962281,3.21136,3114.0,3113.3,0.63869948]
[1732033962481,3.21136,3114.0,3113.4,0.8078]
[1732033962659,3.21136,3114.0,3113.4,1.27364595]
[1732033962857,3.21136,3114.0,3113.4,1.62938992]
[1732033963084,3.21136,3114.0,3113.5,3.21181]
[1732033963285,3.21136,3114.0,3113.5,6.77931397]
[1732033963582,3.21111,3114.2,3113.7,3.21159]
[1732033963789,3.21092,3114.4,3113.8,4.305949]
[1732033963990,3.21073,3114.6,3114.1,3.21113]
[1732033964694,3.21068,3114.6,3114.1,0.64549262]
[1732033964896,0.8223,3114.9,3114.1,0.64549262]
[1732033965108,6.55575301,3119.3,3114.1,0.64549262]
[1732033965109,3.20898,3116.3,3115.7,0.7991]
[1732033965403,0.10590647,3117.1,3115.8,0.400874]
[1732033965602,0.09590647,3117.1,3115.8,0.400874]
[1732033965798,3.30404647,3117.1,3116.3,0.7757]
[1732033965986,0.09590647,3117.1,3116.4,3.20873]
[1732033966185,0.09590647,3117.1,3116.3,0.7757]
[1732033966501,0.09590647,3117.1,3116.6,3.20858]
[1732033967296,0.09590647,3117.1,3116.3,3.98456]
[1732033967494,0.09590647,3117.1,3116.4,3.20882]
[1732033967697,0.09590647,3117.1,3116.5,3.20865]
[1732033967918,0.09590647,3117.1,3116.7,3.20849]
[1732033968118,0.09590647,3117.1,3116.8,3.20841]
[1732033968348,0.09590647,3117.1,3116.7,3.20849]
[1732033968524,0.09590647,3117.1,3116.8,3.2084]
[1732033968995,0.09590647,3117.1,3116.7,3.20844]
[1732033969392,0.09590647,3117.1,3116.5,3.20869]
[1732033970005,0.09590647,3117.1,3116.6,3.2086]
[1732033970444,0.09590647,3117.1,3116.8,0.62834511]
[1732033976123,0.42628812,3117.1,3116.8,0.62834511]
[1732033976298,0.42628812,3117.1,3116.3,0.7757]
[1732033976299,3.20831,3116.9,3116.3,0.7757]
[1732033976696,3.30410647,3117.1,3116.4,3.20873]
[1732033976897,3.30410647,3117.1,3116.3,0.7757]
[1732033976898,0.09590647,3117.1,3116.3,0.7757]
[1732033977145,0.09590647,3117.1,3116.5,3.20863]
[1732033977361,0.09590647,3117.1,3116.5,2.88942832]
[1732033977540,0.09590647,3117.1,3116.8,3.83786451]
[1732033977715,0.09590647,3117.1,3116.8,0.62948451]
[1732033979556,3.30404647,3117.1,3116.8,0.62948451]
[1732033979759,0.09590647,3117.1,3116.8,0.62948451]
[1732033981347,0.09590647,3117.1,3116.8,3.83787451]
[1732033981733,0.09590647,3117.1,3116.9,3.20829]
[1732033982059,0.09590647,3117.1,3116.8,0.62948451]
[1732033982559,3.30401647,3117.1,3116.8,0.62948451]
[1732033982923,0.09590647,3117.1,3116.8,0.62948451]
[1732033984268,0.09590647,3117.1,3116.9,3.20831]
[1732033984431,0.09590647,3117.1,3116.8,0.62948451]
[1732033985070,3.30408647,3117.1,3116.8,0.62948451]
[1732033985232,4.01921,3116.9,3116.8,0.62948451]
[1732033985436,0.8109,3116.9,3116.8,0.62948451]
[1732033986153,0.09590647,3117.1,3116.8,0.62948451]
[1732033987259,0.09590647,3117.1,3116.8,3.83782451]
[1732033987460,0.09590647,3117.1,3116.8,3.87022133]
[1732033987670,0.09590647,3117.1,3117.0,3.20821]
[1732033987964,0.09590647,3117.1,3116.8,4.57809046]
[1732033987965,0.09590647,3117.1,3116.9,0.3513085]
[1732033988266,0.09590647,3117.1,3116.8,1.68866214]
[1732033988472,0.09590647,3117.1,3116.8,0.62948451]
[1732033988681,3.30407647,3117.1,3116.8,0.62948451]
[1732033988839,0.7877,3117.0,3116.8,0.62948451]
[1732033989166,3.20831,3116.9,3116.8,0.62948451]
[1732033989469,3.93831865,3116.9,3116.8,0.62948451]
[1732033989828,3.93831865,3116.9,3116.3,0.35188742]
[1732033990169,3.93831865,3116.9,3116.1,0.36911252]
[1732033990170,4.01873,3116.3,3116.2,0.35188742]
[1732033990478,4.01873,3116.3,3116.2,0.35281663]
[1732033993237,0.8098,3116.3,3116.2,0.35281663]
[1732033993554,4.01873,3116.3,3116.2,0.35281663]
[1732033993761,3.20877,3116.5,3116.2,0.35281663]
[1732033993938,3.20888,3116.4,3116.3,0.35281663]
[1732033995073,3.20903,3116.2,3116.1,0.63485243]
[1732033995676,3.20875,3116.5,3116.3,0.3549907]
[1732033995834,3.20875,3116.5,3116.1,0.98984313]
[1732033996039,3.20875,3116.5,3116.4,0.3549907]
[1732033996359,3.20872,3116.5,3116.4,0.3549907]
[1732033996938,3.0,3116.7,3116.4,0.3549907]
[1732033997248,3.20869,3116.6,3116.5,0.3549907]
[1732033998976,3.20869,3116.6,3116.1,0.63485243]
[1732033999193,3.20866,3116.6,3116.5,0.35509934]
[1732033999685,7.724521,3116.6,3116.5,0.35509934]
[1732033999897,7.714921,3116.6,3116.5,0.35509934]
[1732034001377,7.714921,3116.6,3115.5,0.63205894]
[1732034001378,3.97523,3116.2,3116.1,0.37261273]
[1732034001582,0.7662,3116.1,3116.0,0.37261273]
[1732034001753,6.97533,3116.1,3116.0,0.37261273]
[1732034001958,3.20924,3116.0,3115.9,0.37261273]
[1732034002199,3.20924,3116.0,3114.6,2.88942832]
[1732034002200,8.0702166,3116.0,3115.8,0.37261273]
[1732034002358,8.0702166,3116.0,3115.2,0.64456544]
[1732034002359,3.20996,3115.3,3115.2,0.64456544]
[1732034002680,3.98066,3115.3,3115.2,0.64456544]
[1732034002883,3.98066,3115.3,3114.5,0.7881]
[1732034002884,3.21025,3115.1,3114.5,0.7881]
[1732034003193,3.21027,3115.0,3114.9,0.64873427]
[1732034003539,3.2101,3115.2,3114.9,0.64873427]
[1732034003773,3.20987,3115.4,3114.9,0.64873427]
[1732034004072,3.21008,3115.2,3114.9,0.64873427]
[1732034004459,3.20987,3115.4,3114.9,0.64873427]
[1732034004664,3.21023,3115.1,3114.9,0.64873427]
[1732034004890,3.21023,3115.1,3114.5,3.99883]
[1732034005046,3.21023,3115.1,3114.6,0.399883]
[1732034005649,3.2103,3115.0,3114.6,0.399883]
[1732034005850,3.21009,3115.2,3114.7,3.21057]
[1732034006065,3.20977,3115.5,3115.1,0.37177299]
[1732034006488,3.21,3115.3,3115.2,0.37177299]
[1732034006768,3.21,3115.3,3115.1,0.37177299]
[1732034007114,0.8245,3115.6,3115.1,0.37177299]
[1732034007277,3.20956,3115.7,3115.2,0.37177299]
[1732034007468,3.20956,3115.7,3115.1,3.96636]
[1732034007469,3.20956,3115.7,3115.3,0.37177299]
[1732034007670,3.20956,3115.7,3115.4,0.37177299]
[1732034007879,3.20975,3115.5,3115.3,0.37177299]
[1732034008478,3.20975,3115.5,3115.2,0.37143645]
[1732034009413,3.20975,3115.5,3115.1,1.1275604]
[1732034010020,3.20989,3115.4,3115.1,1.1275604]
[1732034010333,6.41959,3115.5,3115.1,1.1275604]
[1732034010624,6.41959,3115.5,3115.1,0.3713604]
[1732034010625,9.09948832,3115.2,3115.1,0.3713604]
[1732034010833,9.92578832,3115.2,3115.1,0.3713604]
[1732034011380,7.03636,3115.2,3115.1,0.3713604]
[1732034011621,6.42146,3114.6,3114.2,0.3713604]
[1732034011831,3.21081,3114.5,3114.2,0.3713604]
[1732034012032,3.21069,3114.6,3114.1,0.723009]
[1732034012033,6.42146,3114.6,3114.1,0.723009]
[1732034012180,3.21069,3114.6,3114.1,0.723009]
[1732034012387,6.42146,3114.6,3113.9,4.01886]
[1732034012716,3.21069,3114.6,3114.2,0.37097532]
[1732034012886,3.2108,3114.5,3114.2,0.37097532]
[1732034013088,3.2108,3114.5,3113.9,0.8075]
[1732034013289,3.2109,3114.4,3114.0,0.401893]
[1732034013589,3.21116,3114.2,3113.9,0.37123663]
[1732034013886,3.2113,3114.0,3113.7,0.37123663]
[1732034014111,3.2113,3114.0,3113.6,0.37123663]
[1732034014334,3.2113,3114.0,3113.5,0.37123663]
[1732034014639,3.2114,3113.9,3113.7,0.62714147]
[1732034015284,3.21132,3114.0,3113.7,0.62714147]
[1732034016124,3.21151,3113.8,3113.7,0.62714147]
[1732034016291,3.21132,3114.0,3113.7,0.62714147]
[1732034016514,3.21123,3114.1,3113.7,0.62714147]
[1732034016825,3.21136,3114.0,3113.7,0.62714147]
[1732034017026,3.21113,3114.2,3113.7,0.62714147]
[1732034017225,3.21093,3114.4,3113.7,0.62714147]
[1732034017426,0.7864,3114.6,3113.7,0.62714147]
[1732034017427,3.21127,3114.1,3113.7,0.62714147]
[1732034017635,3.21113,3114.2,3113.5,3.21171]
[1732034017836,3.21141,3113.9,3113.6,0.3610327]
[1732034018039,3.21168,3113.7,3113.4,0.65047695]
[1732034018202,3.21181,3113.5,3113.1,0.37123663]
[1732034018404,3.21193,3113.4,3113.0,1.18883663]
[1732034018589,3.21182,3113.5,3113.1,0.65066953]
[1732034018786,3.21192,3113.4,3113.1,0.65066953]
[1732034019293,3.21209,3113.3,3113.1,0.65066953]
[1732034019509,3.21212,3113.2,3112.9,0.37123663]
[1732034019690,3.21227,3113.1,3112.8,0.37123663]
[1732034019888,3.21212,3113.2,3112.7,0.8148]
[1732034019889,3.21197,3113.4,3112.7,0.8148]
[1732034020137,3.21222,3113.2,3112.9,0.6498992]
[1732034020307,3.21223,3113.1,3112.9,0.6498992]
[1732034020500,3.21233,3113.0,3112.9,0.6498992]
[1732034020702,3.21233,3113.0,3112.7,0.8148]
[1732034020980,2.88942832,3113.7,3112.4,0.37123663]
[1732034020981,3.21254,3112.8,3112.4,0.37123663]
[1732034021127,3.21282,3112.6,3112.4,0.7724]
[1732034021324,3.21282,3112.6,3112.2,0.37347197]
[1732034021935,3.21285,3112.5,3112.2,0.37347197]
[1732034022243,3.21282,3112.6,3112.1,0.7724]
[1732034022244,3.21295,3112.4,3112.1,0.7724]
[1732034022534,3.21295,3112.4,3112.3,0.643544]
[1732034022740,3.21295,3112.4,3111.8,4.08658281]
[1732034023040,3.21271,3112.7,3112.0,3.21327]
[1732034023195,3.21261,3112.8,3112.1,3.21319]
[1732034023400,3.21265,3112.7,3112.2,1.27572639]
[1732034023701,3.21261,3112.8,3112.2,0.63308039]
[1732034023702,3.21257,3112.8,3112.2,0.63308039]
[1732034023897,3.21257,3112.8,3112.3,0.38462704]
[1732034024234,3.21229,3113.1,3112.4,0.55]
[1732034024543,3.21229,3113.1,3112.5,0.4944347]
[1732034024746,0.8289,3113.6,3112.5,0.4944347]
[1732034024948,3.2126,3112.8,3112.4,0.55]
[1732034025246,3.21261,3112.8,3112.3,0.7967]
[1732034025446,3.21261,3112.8,3112.4,0.8014167]
[1732034025645,3.21237,3113.0,3112.5,0.55]
[1732034026151,3.21246,3112.9,3112.5,0.55]
[1732034026349,3.21261,3112.8,3112.5,0.55]
[1732034026643,3.21263,3112.8,3112.4,0.55]
[1732034026843,3.21263,3112.8,3112.3,0.7967]
[1732034027051,3.21261,3112.8,3112.3,0.7967]
[1732034027247,3.21261,3112.8,3112.5,0.64432227]
[1732034027600,3.21274,3112.6,3112.5,0.64432227]
[1732034027804,3.616421,3112.8,3112.0,0.37123663]
[1732034028106,3.616421,3112.8,3111.9,1.16873663]
[1732034028107,3.21317,3112.2,3111.9,1.16873663]
[1732034028489,3.21326,3112.1,3111.9,1.16873663]
[1732034028598,3.21326,3112.1,3111.9,0.7975]
[1732034028801,3.21323,3112.2,3111.9,0.7975]
[1732034029118,3.21334,3112.1,3111.9,0.7975]
[1732034029314,6.4267,3112.1,3111.9,0.7975]
[1732034029527,3.21334,3112.1,3111.8,1.01819194]
[1732034029733,3.21334,3112.1,3111.8,0.64695531]
[1732034030043,0.8255,3113.0,3111.9,3.7634]
[1732034030213,3.21274,3112.6,3112.0,1.69434274]
[1732034030544,3.21295,3112.4,3112.1,0.37123663]
[1732034030844,3.21295,3112.4,3112.0,1.69434274]
[1732034031414,3.21295,3112.4,3112.1,0.37123663]
[1732034031596,3.21314,3112.3,3112.1,0.37123663]
[1732034031797,3.21326,3112.1,3112.0,0.37123663]
[1732034032027,3.21326,3112.1,3111.9,0.37123663]
[1732034032250,3.21321,3112.2,3111.9,0.37123663]
[1732034032412,3.21313,3112.3,3111.9,0.37123663]
[1732034032613,3.21287,3112.5,3112.1,0.37123663]
[1732034032828,3.21295,3112.4,3112.1,0.37123663]
[1732034033048,3.21287,3112.5,3111.8,3.86052531]
[1732034033049,3.21309,3112.3,3111.8,3.86052531]
[1732034033351,3.21309,3112.3,3112.2,0.37036183]
[1732034033550,3.21309,3112.3,3111.9,0.46508253]
[1732034033853,3.21309,3112.3,3112.2,0.3704732]
[1732034034154,3.21316,3112.2,3112.1,0.3704732]
[1732034034663,3.21309,3112.3,3112.1,0.3704732]
[1732034034838,3.21289,3112.5,3111.8,0.64695531]
[1732034035152,3.21305,3112.3,3112.2,0.37066352]
[1732034035339,3.21295,3112.4,3111.8,3.86048531]
[1732034035538,3.21298,3112.4,3112.3,0.37081242]
[1732034035753,3.21289,3112.5,3112.3,0.37081242]
[1732034036277,3.2127,3112.7,3112.4,0.37081242]
[1732034036479,3.2127,3112.7,3112.5,0.37081242]
[1732034036687,0.8255,3113.0,3112.5,0.37081242]
[1732034036890,3.21265,3112.7,3112.6,0.37081242]
[1732034037388,3.21265,3112.7,3112.4,0.8057]
[1732034037795,3.21249,3112.9,3112.4,0.8057]
[1732034037937,3.21249,3112.9,3112.8,0.37124154]
[1732034038337,3.21249,3112.9,3112.4,0.8057]
[1732034038540,3.2126,3112.8,3112.4,1.43217305]
[1732034039245,3.21271,3112.7,3112.4,1.43217305]
[1732034039560,3.21271,3112.7,3112.1,3.76324]
[1732034039794,3.21271,3112.7,3112.1,3.76319]
[1732034040091,3.21246,3112.9,3112.1,0.55]
[1732034040383,3.21246,3112.9,3112.4,1.3742]
[1732034041656,3.21227,3113.1,3112.4,1.3742]
[1732034041855,3.21227,3113.1,3112.5,6.42553]
[1732034042044,3.21227,3113.1,3112.5,6.42555]
[1732034042983,3.21227,3113.1,3112.6,3.21269]
[1732034043162,3.21227,3113.1,3112.7,0.642545]
[1732034043357,3.21218,3113.2,3112.7,3.855185]
[1732034044107,3.21218,3113.2,3112.8,0.8243]
[1732034044602,6.42416,3113.3,3112.8,0.8243]
[1732034047219,3.21197,3113.4,3113.0,0.8057]
[1732034047709,3.21187,3113.5,3113.0,0.8057]
[1732034047873,3.21198,3113.4,3113.0,0.8057]
[1732034048209,3.21187,3113.5,3113.0,4.01796]
[1732034048420,3.21202,3113.3,3113.0,0.8057]
[1732034048717,3.21215,3113.2,3112.7,3.0]
[1732034049203,0.7988,3113.5,3112.5,0.42976219]
[1732034049508,3.21218,3113.2,3112.6,3.21266]
[1732034050003,3.2121,3113.3,3112.8,0.64173766]
[1732034050200,3.21196,3113.4,3112.8,0.64173766]
[1732034050390,3.21196,3113.4,3112.9,4.00663]
[1732034050800,3.21196,3113.4,3113.0,3.21233]
[1732034050968,3.21196,3113.4,3112.9,4.00663]
[1732034051370,3.21204,3113.3,3112.9,0.7942]
[1732034051619,3.21182,3113.5,3112.9,1.25904577]
[1732034051918,3.21167,3113.7,3112.9,1.25904577]
[1732034051919,3.21167,3113.7,3113.2,3.21212]
[1732034052071,3.21173,3113.6,3113.1,3.21222]
[1732034052478,3.21167,3113.7,3113.1,3.21222]
[1732034052769,3.21172,3113.6,3113.1,3.21222]
[1732034053320,3.21177,3113.6,3113.1,3.98523203]
[1732034053673,3.21152,3113.8,3113.2,3.21206]
[1732034053875,3.21152,3113.8,3113.7,0.37346865]
[1732034054117,3.21152,3113.8,3113.3,3.212]
[1732034054410,3.21152,3113.8,3113.7,0.37331207]
[1732034055990,3.21152,3113.8,3113.6,0.37331207]
[1732034056201,3.21152,3113.8,3113.3,3.21201]
[1732034056521,3.21141,3113.9,3113.6,0.37316438]
[1732034056817,3.21157,3113.8,3113.6,0.37316438]
[1732034057319,3.21141,3113.9,3113.5,1.18316438]
[1732034057523,3.99876,3114.1,3113.5,1.18316438]
[1732034057695,3.21146,3113.9,3113.6,0.37316438]
[1732034057878,3.21124,3114.1,3113.6,0.37316438]
[1732034058320,3.21146,3113.9,3113.6,0.37316438]
[1732034058526,6.42293,3113.9,3113.5,1.18316438]
[1732034058678,3.21123,3114.1,3113.6,0.37316438]
[1732034058884,3.21141,3113.9,3113.6,0.37316438]
[1732034059110,3.21141,3113.9,3113.5,1.18316438]
[1732034059287,3.21141,3113.9,3113.5,0.81]
[1732034059640,3.21161,3113.7,3113.5,0.81]
[1732034059933,3.21171,3113.6,3113.5,0.81]
[1732034060292,3.21181,3113.5,3113.4,0.62967812]
[1732034061230,3.21216,3113.2,3112.9,1.18154293]
[1732034061607,3.2121,3113.3,3112.9,1.18154293]
[1732034061801,3.2121,3113.3,3113.0,0.43940429]
[1732034062030,3.21215,3113.2,3113.0,0.43940429]
[1732034062188,6.424,3113.4,3113.1,0.6477808]
[1732034062394,3.21208,3113.3,3113.1,0.6477808]
[1732034063139,3.21212,3113.2,3113.1,0.6477808]
[1732034065241,3.21243,3112.9,3112.8,0.37294293]
[1732034065540,3.21243,3112.9,3112.3,0.38383541]
[1732034065706,3.21295,3112.4,3112.3,0.38383541]
[1732034065907,3.21295,3112.4,3112.3,0.01089248]
[1732034066708,3.21285,3112.5,3112.3,0.01089248]
[1732034067236,3.21295,3112.4,3112.3,0.01089248]
[1732034067998,3.2129,3112.5,3112.3,0.01089248]
[1732034068300,3.21295,3112.4,3112.3,0.01089248]
[1732034069433,3.21254,3112.8,3112.4,0.8289]
[1732034069806,3.21239,3113.0,3112.4,4.04184]
[1732034070017,3.2125,3112.9,3112.4,1.27146754]
[1732034070213,3.21234,3113.0,3112.5,3.21275]
[1732034070411,3.21244,3112.9,3112.6,0.44842175]
[1732034070622,6.42475,3113.0,3112.4,4.48435754]
[1732034070941,3.2126,3112.8,3112.5,0.80819849]
[1732034071245,3.2126,3112.8,3112.4,1.27146754]
[1732034071748,3.21289,3112.5,3112.3,0.01089248]
[1732034072613,3.21289,3112.5,3112.4,0.64470553]
[1732034074062,3.21274,3112.6,3112.4,0.64470553]
[1732034074444,3.21259,3112.8,3112.4,0.64470553]
[1732034074613,0.8264,3113.0,3112.4,0.64470553]
[1732034074818,3.21285,3112.5,3112.3,0.01089248]
[1732034075142,3.21295,3112.4,3112.3,0.01089248]
[1732034077774,3.21269,3112.7,3112.3,0.01089248]
[1732034077923,3.21248,3112.9,3112.4,0.55]
[1732034078241,3.21275,3112.6,3112.4,0.55]
[1732034078923,0.778,3113.0,3112.4,0.55]
[1732034079120,3.21282,3112.6,3112.4,0.55]
[1732034079321,3.21285,3112.5,3112.4,0.55]
[1732034079828,3.21295,3112.4,3112.3,0.01089248]
[1732034080664,0.778,3112.9,3112.3,0.01089248]
[1732034080869,3.21285,3112.5,3112.3,0.01089248]
[1732034083685,3.21295,3112.4,3112.3,0.01089248]
[1732034084567,3.85553,3112.4,3112.3,0.01089248]
[1732034084823,4.61783,3112.4,3112.3,0.01089248]
[1732034086725,7.51286878,3112.4,3112.3,0.01089248]
[1732034087487,10.51286878,3112.4,3112.3,2.48e-06]
[1732034088230,0.01,3112.1,3110.7,1.18497131]
[1732034088532,0.8298,3111.0,3110.3,1.6992775]
[1732034088784,3.21468,3110.8,3110.3,1.81706394]
[1732034088887,3.21478,3110.7,3110.3,1.81706394]
[1732034089087,3.21478,3110.7,3110.3,1.32560619]
[1732034089518,3.21454,3110.9,3110.3,1.32560619]
[1732034089791,3.21451,3110.9,3110.3,4.54064619]
[1732034089987,3.21466,3110.8,3110.6,0.62793026]
[1732034090194,3.21466,3110.8,3110.7,0.55]
[1732034090391,3.21452,3110.9,3110.7,0.55]
[1732034090630,3.21443,3111.0,3110.7,0.55]
[1732034091045,3.21433,3111.1,3110.7,0.55]
[1732034091294,3.21377,3111.7,3111.0,3.21438]
[1732034091414,6.9879,3111.9,3110.8,0.8105]
[1732034091415,0.7744,3111.9,3111.3,0.55]
[1732034091603,3.21333,3112.1,3111.3,0.55]